[Event "*** Titled Tuesday 3|2 Blitz (Early)"]
[Site "Chess.com"]
[Date "2016.11.01"]
[Round "7"]
[White "uzbektiger95"]
[Black "PaulfromSPb"]
[Result "0-1"]
[WhiteElo "2605"]
[BlackElo "2456"]
[TimeControl "180+2"]
[EndTime "12:33:22 PDT"]
[Termination "PaulfromSPb won by resignation"]

1. c4 {[%clk 0:03:02]} 1... e5 {[%clk 0:03:00.6]} 2. Nc3 {[%clk 0:03:03.9]} 2...
Nc6 {[%clk 0:03:01]} 3. Nf3 {[%clk 0:03:04.6]} 3... g6 {[%clk 0:03:02.3]} 4. g3
{[%clk 0:03:04.1]} 4... Bg7 {[%clk 0:03:03.6]} 5. Bg2 {[%clk 0:03:05.9]} 5... f5
{[%clk 0:03:04.8]} 6. O-O {[%clk 0:03:06.6]} 6... Nf6 {[%clk 0:03:05.6]} 7. e3
{[%clk 0:03:05.1]} 7... O-O {[%clk 0:03:04.2]} 8. d4 {[%clk 0:03:02.6]} 8... e4
{[%clk 0:02:59.8]} 9. Ne1 {[%clk 0:03:03.6]} 9... Ne7 {[%clk 0:03:00.1]} 10. d5
{[%clk 0:03:01.5]} 10... d6 {[%clk 0:02:59.3]} 11. f3 {[%clk 0:03:02.9]} 11...
exf3 {[%clk 0:02:57.6]} 12. Nxf3 {[%clk 0:03:04.8]} 12... h6 {[%clk 0:02:54.9]}
13. Nd4 {[%clk 0:03:05.4]} 13... Re8 {[%clk 0:02:54.6]} 14. Qd3 {[%clk
0:03:02.8]} 14... Ng4 {[%clk 0:02:53.4]} 15. Bd2 {[%clk 0:02:54.1]} 15... Ne5
{[%clk 0:02:54.2]} 16. Qe2 {[%clk 0:02:55.3]} 16... c6 {[%clk 0:02:39.2]} 17.
Kh1 {[%clk 0:02:41.2]} 17... Kh7 {[%clk 0:02:38.8]} 18. Rae1 {[%clk 0:02:34.9]}
18... Qb6 {[%clk 0:02:38.2]} 19. b3 {[%clk 0:02:06.4]} 19... Ng8 {[%clk
0:02:30.6]} 20. Bc1 {[%clk 0:01:31.1]} 20... Nf6 {[%clk 0:02:29.6]} 21. Bb2
{[%clk 0:01:30.5]} 21... Bd7 {[%clk 0:02:21.5]} 22. Qd2 {[%clk 0:01:30.3]} 22...
Neg4 {[%clk 0:02:08.6]} 23. e4 {[%clk 0:01:17]} 23... fxe4 {[%clk 0:01:23.6]}
24. Nxe4 {[%clk 0:01:18.1]} 24... cxd5 {[%clk 0:01:14.2]} 25. cxd5 {[%clk
0:00:57.2]} 25... Nxe4 {[%clk 0:00:48]} 26. Rxe4 {[%clk 0:00:57.4]} 26... Nf6
{[%clk 0:00:47.1]} 27. Ref4 {[%clk 0:00:51.4]} 27... Qd8 {[%clk 0:00:31.8]} 28.
Ne6 {[%clk 0:00:49.6]} 28... Bxe6 {[%clk 0:00:32.8]} 29. dxe6 {[%clk 0:00:50.4]}
29... Rxe6 {[%clk 0:00:32.3]} 30. Bh3 {[%clk 0:00:46]} 30... Ne4 {[%clk
0:00:27.9]} 31. Qd3 {[%clk 0:00:09.1]} 31... Nc5 {[%clk 0:00:28.6]} 32. Qc2
{[%clk 0:00:06.6]} 32... Re7 {[%clk 0:00:29.2]} 33. Rf7 {[%clk 0:00:06.9]} 33...
Kg8 {[%clk 0:00:27]} 34. Rxe7 {[%clk 0:00:05.5]} 34... Qxe7 {[%clk 0:00:28]} 35.
Bg2 {[%clk 0:00:06.6]} 35... Qe6 {[%clk 0:00:26.6]} 36. Rd1 {[%clk 0:00:06.7]}
36... Kh7 {[%clk 0:00:25.8]} 37. b4 {[%clk 0:00:06.3]} 37... Nd7 {[%clk
0:00:24.1]} 38. Bxb7 {[%clk 0:00:06.5]} 38... Rf8 {[%clk 0:00:24.6]} 39. Bd5
{[%clk 0:00:07.4]} 39... Qg4 {[%clk 0:00:23.2]} 40. Bxg7 {[%clk 0:00:05]} 40...
Kxg7 {[%clk 0:00:24.5]} 41. Bg2 {[%clk 0:00:06.2]} 41... Qe6 {[%clk 0:00:22.4]}
42. Qd3 {[%clk 0:00:07]} 42... Rf6 {[%clk 0:00:22.7]} 43. a4 {[%clk 0:00:07.7]}
43... Ne5 {[%clk 0:00:23.7]} 44. Qa6 {[%clk 0:00:08.6]} 44... Rf7 {[%clk
0:00:23.1]} 45. Qxd6 {[%clk 0:00:08.7]} 45... Qf5 {[%clk 0:00:24.3]} 46. Qd4
{[%clk 0:00:09.1]} 46... Kh7 {[%clk 0:00:25.1]} 47. Rf1 {[%clk 0:00:10.4]} 47...
Qe6 {[%clk 0:00:24.3]} 48. Rxf7+ {[%clk 0:00:11.9]} 48... Nxf7 {[%clk
0:00:24.2]} 49. Qxa7 {[%clk 0:00:13.5]} 49... Qe1+ {[%clk 0:00:25]} 50. Qg1
{[%clk 0:00:15.2]} 50... Qxb4 {[%clk 0:00:26.1]} 51. Qa1 {[%clk 0:00:13.7]}
51... Qa5 {[%clk 0:00:27.2]} 52. h4 {[%clk 0:00:14.4]} 52... Ne5 {[%clk
0:00:28.4]} 53. Qd4 {[%clk 0:00:15.5]} 53... h5 {[%clk 0:00:29.1]} 54. Bd5
{[%clk 0:00:16.5]} 54... Ng4 {[%clk 0:00:28.4]} 55. Kg2 {[%clk 0:00:12.7]} 55...
Qe1 {[%clk 0:00:25.5]} 56. Bc4 {[%clk 0:00:10.9]} 56... Ne3+ {[%clk 0:00:25.7]}
57. Kf3 {[%clk 0:00:12.2]} 57... Nf5 {[%clk 0:00:24.8]} 58. Qf4 {[%clk
0:00:10.2]} 58... Qc3+ {[%clk 0:00:24.6]} 59. Ke2 {[%clk 0:00:09.8]} 59... Nd4+
{[%clk 0:00:24.2]} 60. Kf2 {[%clk 0:00:07.3]} 60... Qxc4 {[%clk 0:00:25.5]} 61.
a5 {[%clk 0:00:04.5]} 61... Qe2+ {[%clk 0:00:26.5]} 62. Kg1 {[%clk 0:00:05.9]}
62... Nf3+ {[%clk 0:00:27.6]} 0-1

[Event "*** Titled Tuesday 3|2 Blitz (Early)"]
[Site "Chess.com"]
[Date "2016.11.01"]
[Round "7"]
[White "petrpalachev"]
[Black "GMKrikor"]
[Result "1/2-1/2"]
[WhiteElo "2429"]
[BlackElo "2557"]
[TimeControl "180+2"]
[EndTime "12:33:35 PDT"]
[Termination "Game drawn by agreement"]

1. Nf3 {[%clk 0:03:02]} 1... d5 {[%clk 0:03:00]} 2. g3 {[%clk 0:03:02.8]} 2...
g6 {[%clk 0:03:00.6]} 3. Bg2 {[%clk 0:03:03.9]} 3... Bg7 {[%clk 0:03:02.5]} 4.
O-O {[%clk 0:03:05.5]} 4... Nf6 {[%clk 0:03:03.1]} 5. d4 {[%clk 0:03:07]} 5...
O-O {[%clk 0:03:04.1]} 6. c4 {[%clk 0:03:08.6]} 6... dxc4 {[%clk 0:03:05.6]} 7.
Na3 {[%clk 0:03:10]} 7... Nc6 {[%clk 0:03:02.1]} 8. Nxc4 {[%clk 0:03:10.6]} 8...
Be6 {[%clk 0:03:03.8]} 9. b3 {[%clk 0:03:12.2]} 9... Bd5 {[%clk 0:03:03.5]} 10.
Bb2 {[%clk 0:03:13.3]} 10... a5 {[%clk 0:03:04.9]} 11. Rc1 {[%clk 0:03:13.8]}
11... a4 {[%clk 0:03:05.9]} 12. e3 {[%clk 0:03:10.3]} 12... axb3 {[%clk
0:03:05.7]} 13. axb3 {[%clk 0:03:12.2]} 13... Ra2 {[%clk 0:03:03.1]} 14. Ra1
{[%clk 0:03:05]} 14... Qa8 {[%clk 0:02:58.8]} 15. Qb1 {[%clk 0:02:34.4]} 15...
Ra6 {[%clk 0:02:49.5]} 16. Rc1 {[%clk 0:02:20.1]} 16... Be4 {[%clk 0:02:37.9]}
17. Rxa6 {[%clk 0:02:18.3]} 17... Qxa6 {[%clk 0:02:39.8]} 18. Qa1 {[%clk
0:02:18.1]} 18... Ra8 {[%clk 0:02:16.3]} 19. Qxa6 {[%clk 0:02:17.5]} 19... Rxa6
{[%clk 0:02:18.2]} 20. Ra1 {[%clk 0:02:18.6]} 20... Rxa1+ {[%clk 0:02:12.6]} 21.
Bxa1 {[%clk 0:02:20.5]} 21... e6 {[%clk 0:01:57.7]} 22. Ne1 {[%clk 0:02:08.7]}
22... Bxg2 {[%clk 0:01:42.7]} 23. Kxg2 {[%clk 0:02:10.6]} 23... Bf8 {[%clk
0:01:42.7]} 24. Nd3 {[%clk 0:02:09.2]} 24... b5 {[%clk 0:01:43.5]} 25. Nce5
{[%clk 0:02:06]} 25... Na5 {[%clk 0:01:40.2]} 26. b4 {[%clk 0:01:34.6]} 26...
Nb7 {[%clk 0:01:40.6]} 27. Bc3 {[%clk 0:01:31.7]} 27... Nd5 {[%clk 0:01:37.5]}
28. Bd2 {[%clk 0:01:30.5]} 28... Nb6 {[%clk 0:01:25.8]} 29. Nc6 {[%clk
0:01:20.5]} 29... Nc8 {[%clk 0:00:54.8]} 30. Kf3 {[%clk 0:01:15.1]} 30... Bd6
{[%clk 0:00:48.2]} 31. h3 {[%clk 0:01:11.2]} 31... Kf8 {[%clk 0:00:49]} 32. e4
{[%clk 0:01:08.9]} 32... Ke8 {[%clk 0:00:50.5]} 33. Bf4 {[%clk 0:01:00.5]} 33...
f6 {[%clk 0:00:47.4]} 34. g4 {[%clk 0:00:58.1]} 34... Kd7 {[%clk 0:00:47.5]} 35.
Nb8+ {[%clk 0:00:58.6]} 35... Ke8 {[%clk 0:00:45.9]} 36. Na6 {[%clk 0:00:46.2]}
36... Kd8 {[%clk 0:00:42.3]} 37. Ndc5 {[%clk 0:00:41.4]} 37... Nxc5 {[%clk
0:00:36.6]} 38. bxc5 {[%clk 0:00:31.3]} 38... Bxf4 {[%clk 0:00:36.7]} 39. Kxf4
{[%clk 0:00:33.2]} 39... Ne7 {[%clk 0:00:31.4]} 40. g5 {[%clk 0:00:23.5]} 40...
fxg5+ {[%clk 0:00:18.5]} 41. Kxg5 {[%clk 0:00:25.4]} 41... Nc6 {[%clk 0:00:20]}
42. d5 {[%clk 0:00:24.7]} 42... exd5 {[%clk 0:00:18.4]} 43. exd5 {[%clk
0:00:26.6]} 43... Ne5 {[%clk 0:00:15.7]} 44. Nb4 {[%clk 0:00:23.8]} 44... Nd7
{[%clk 0:00:15.7]} 45. Nd3 {[%clk 0:00:21.4]} 45... b4 {[%clk 0:00:14.3]} 46.
Nxb4 {[%clk 0:00:21.9]} 46... Nxc5 {[%clk 0:00:15.6]} 47. Kh6 {[%clk 0:00:23.2]}
47... Ne4 {[%clk 0:00:14.2]} 48. f4 {[%clk 0:00:19.7]} 48... Nf2 {[%clk
0:00:14.5]} 49. h4 {[%clk 0:00:20.3]} 49... Nh3 {[%clk 0:00:13.1]} 50. Nd3
{[%clk 0:00:20.3]} 50... Ke7 {[%clk 0:00:10]} 51. Kxh7 {[%clk 0:00:19.7]} 51...
Kf6 {[%clk 0:00:11.5]} 52. Kg8 {[%clk 0:00:13.4]} 52... Kf5 {[%clk 0:00:12.5]}
53. Kf7 {[%clk 0:00:13.6]} 53... Ke4 {[%clk 0:00:12.5]} 54. Nb4 {[%clk
0:00:06.3]} 54... Nxf4 {[%clk 0:00:13]} 55. Kf6 {[%clk 0:00:03.2]} 55... Kd4
{[%clk 0:00:05]} 56. Kg5 {[%clk 0:00:03.6]} 56... Ng2 {[%clk 0:00:06.5]} 57.
Kxg6 {[%clk 0:00:03.7]} 57... Nxh4+ {[%clk 0:00:07.5]} 58. Kf6 {[%clk
0:00:02.6]} 58... Nf3 {[%clk 0:00:03.2]} 59. Na6 {[%clk 0:00:03.8]} 59... Kxd5
{[%clk 0:00:04.3]} 60. Nxc7+ {[%clk 0:00:05.2]} 60... Kd6 {[%clk 0:00:04.4]} 61.
Ne8+ {[%clk 0:00:07.1]} 61... Kd7 {[%clk 0:00:05.6]} 62. Ng7 {[%clk 0:00:08.8]}
62... Nd2 {[%clk 0:00:05]} 63. Nf5 {[%clk 0:00:10.7]} 63... Ne4+ {[%clk
0:00:04.2]} 1/2-1/2

[Event "*** Titled Tuesday 3|2 Blitz (Early)"]
[Site "Chess.com"]
[Date "2016.11.01"]
[Round "7"]
[White "Grebeniuk-S"]
[Black "Morshynska"]
[Result "1-0"]
[WhiteElo "2430"]
[BlackElo "2152"]
[TimeControl "180+2"]
[EndTime "12:33:46 PDT"]
[Termination "Grebeniuk-S won by resignation"]

1. d4 {[%clk 0:03:02]} 1... Nf6 {[%clk 0:03:00.3]} 2. Nf3 {[%clk 0:03:02.7]}
2... e6 {[%clk 0:03:01.3]} 3. e3 {[%clk 0:03:03.5]} 3... b6 {[%clk 0:03:01.7]}
4. Bd3 {[%clk 0:03:05]} 4... Bb7 {[%clk 0:03:02.6]} 5. Nbd2 {[%clk 0:03:06.3]}
5... c5 {[%clk 0:03:03.5]} 6. O-O {[%clk 0:03:07.6]} 6... Be7 {[%clk 0:03:01]}
7. b3 {[%clk 0:03:08.8]} 7... d5 {[%clk 0:03:01.1]} 8. Bb2 {[%clk 0:03:08.2]}
8... O-O {[%clk 0:03:01.6]} 9. Qe2 {[%clk 0:02:49.7]} 9... Nc6 {[%clk
0:02:52.9]} 10. a3 {[%clk 0:02:50.5]} 10... Rc8 {[%clk 0:02:47.3]} 11. Rfd1
{[%clk 0:02:48.8]} 11... Qc7 {[%clk 0:02:39]} 12. h3 {[%clk 0:02:48]} 12... Rfd8
{[%clk 0:02:31.5]} 13. dxc5 {[%clk 0:02:29]} 13... bxc5 {[%clk 0:02:33.4]} 14.
e4 {[%clk 0:02:26.7]} 14... d4 {[%clk 0:01:38.1]} 15. Nc4 {[%clk 0:02:21]} 15...
e5 {[%clk 0:01:33.9]} 16. Bc1 {[%clk 0:01:57.9]} 16... Nd7 {[%clk 0:01:33.1]}
17. Bd2 {[%clk 0:01:43.6]} 17... a5 {[%clk 0:01:19.7]} 18. Nh2 {[%clk
0:01:25.8]} 18... Nf8 {[%clk 0:01:11.7]} 19. Qe1 {[%clk 0:01:09]} 19... Ra8
{[%clk 0:01:11.5]} 20. a4 {[%clk 0:00:52.3]} 20... Nb4 {[%clk 0:01:08.2]} 21.
Bxb4 {[%clk 0:00:50.9]} 21... cxb4 {[%clk 0:01:10.1]} 22. Nf1 {[%clk 0:00:40.6]}
22... Ne6 {[%clk 0:01:09.3]} 23. Ng3 {[%clk 0:00:40.1]} 23... Nf4 {[%clk
0:01:08.7]} 24. Nf5 {[%clk 0:00:40.2]} 24... Bf6 {[%clk 0:01:03.3]} 25. Kh2
{[%clk 0:00:40.7]} 25... g6 {[%clk 0:01:02.4]} 26. Nh6+ {[%clk 0:00:29.4]} 26...
Kg7 {[%clk 0:01:03]} 27. Ng4 {[%clk 0:00:31.3]} 27... Bc8 {[%clk 0:00:52.8]} 28.
g3 {[%clk 0:00:25.1]} 28... Nxh3 {[%clk 0:00:41.3]} 29. Nxf6 {[%clk 0:00:16.5]}
29... Kxf6 {[%clk 0:00:39.8]} 30. f4 {[%clk 0:00:10.7]} 30... exf4 {[%clk
0:00:35.3]} 31. e5+ {[%clk 0:00:12.1]} 31... Kg7 {[%clk 0:00:35.9]} 32. gxf4
{[%clk 0:00:08.4]} 32... Nxf4 {[%clk 0:00:33]} 33. Qe4 {[%clk 0:00:09.8]} 33...
Nd5 {[%clk 0:00:26.8]} 34. Rf1 {[%clk 0:00:08.1]} 34... Bb7 {[%clk 0:00:21]} 35.
Qf3 {[%clk 0:00:07.8]} 35... Rd7 {[%clk 0:00:19]} 36. Rae1 {[%clk 0:00:07.4]}
36... Re7 {[%clk 0:00:19.9]} 37. Be4 {[%clk 0:00:07.8]} 37... f5 {[%clk
0:00:19.1]} 38. Bxd5 {[%clk 0:00:06.6]} 38... Bxd5 {[%clk 0:00:20.6]} 39. Qxd5
{[%clk 0:00:08.5]} 39... Rd8 {[%clk 0:00:22.1]} 40. Qf3 {[%clk 0:00:08.7]} 40...
Re6 {[%clk 0:00:21.9]} 41. Kg2 {[%clk 0:00:10.1]} 41... Re7 {[%clk 0:00:22.4]}
42. Re2 {[%clk 0:00:11.6]} 42... h5 {[%clk 0:00:22.7]} 43. Rg1 {[%clk
0:00:11.8]} 43... Red7 {[%clk 0:00:22.8]} 44. Kf1 {[%clk 0:00:12.8]} 44... d3
{[%clk 0:00:20.9]} 45. cxd3 {[%clk 0:00:14.7]} 45... Rxd3 {[%clk 0:00:22.6]} 46.
Qxf5 {[%clk 0:00:16]} 46... Rd1+ {[%clk 0:00:23.6]} 47. Kf2 {[%clk 0:00:17.2]}
47... Rxg1 {[%clk 0:00:24.8]} 48. Qf6+ {[%clk 0:00:17.9]} 48... Kg8 {[%clk
0:00:22.3]} 49. Kxg1 {[%clk 0:00:19.8]} 49... Qc5+ {[%clk 0:00:23.4]} 50. Rf2
{[%clk 0:00:19.8]} 50... Rd1+ {[%clk 0:00:20.5]} 51. Kh2 {[%clk 0:00:20.1]}
51... Kh7 {[%clk 0:00:20.5]} 52. Qf7+ {[%clk 0:00:21]} 52... Kh6 {[%clk
0:00:21.4]} 53. Qf4+ {[%clk 0:00:22.2]} 53... Kh7 {[%clk 0:00:22.3]} 54. Nd6
{[%clk 0:00:20.9]} 54... Qd5 {[%clk 0:00:21.5]} 55. Qf7+ {[%clk 0:00:21.6]}
55... Qxf7 {[%clk 0:00:21.7]} 56. Nxf7 {[%clk 0:00:23.1]} 56... Rd3 {[%clk
0:00:21.9]} 57. Re2 {[%clk 0:00:23.2]} 57... Rd7 {[%clk 0:00:20.9]} 58. e6
{[%clk 0:00:24.3]} 58... Re7 {[%clk 0:00:22.1]} 59. Nd6 {[%clk 0:00:24.4]} 59...
Kg7 {[%clk 0:00:24]} 60. Nc4 {[%clk 0:00:24.8]} 60... g5 {[%clk 0:00:23.8]} 61.
Nxa5 {[%clk 0:00:25.5]} 61... h4 {[%clk 0:00:23.2]} 62. Nc6 {[%clk 0:00:26.5]}
62... Re8 {[%clk 0:00:24.3]} 63. Kh3 {[%clk 0:00:27.4]} 63... Kg6 {[%clk
0:00:24.7]} 64. Kg4 {[%clk 0:00:28.5]} 64... Kf6 {[%clk 0:00:24.9]} 65. e7
{[%clk 0:00:29.4]} 65... Kf7 {[%clk 0:00:21.6]} 66. a5 {[%clk 0:00:30.3]} 66...
Rc8 {[%clk 0:00:20.9]} 67. e8=Q+ {[%clk 0:00:31.1]} 67... Rxe8 {[%clk 0:00:21]}
68. Rxe8 {[%clk 0:00:33]} 68... Kxe8 {[%clk 0:00:21.9]} 69. a6 {[%clk
0:00:34.9]} 69... Kd7 {[%clk 0:00:22.1]} 70. a7 {[%clk 0:00:34.5]} 1-0

[Event "*** Titled Tuesday 3|2 Blitz (Early)"]
[Site "Chess.com"]
[Date "2016.11.01"]
[Round "7"]
[White "VMikhalevski"]
[Black "ftorodent"]
[Result "1/2-1/2"]
[WhiteElo "2510"]
[BlackElo "2498"]
[TimeControl "180+2"]
[EndTime "12:34:05 PDT"]
[Termination "Game drawn - insufficient material"]

1. Nf3 {[%clk 0:03:01.5]} 1... d5 {[%clk 0:03:00.9]} 2. g3 {[%clk 0:03:02.2]}
2... c6 {[%clk 0:03:01.9]} 3. Bg2 {[%clk 0:03:03.2]} 3... Bg4 {[%clk 0:03:03.4]}
4. O-O {[%clk 0:03:04.6]} 4... Nd7 {[%clk 0:03:04.7]} 5. d3 {[%clk 0:03:04.8]}
5... Ngf6 {[%clk 0:03:05.5]} 6. c4 {[%clk 0:03:04.2]} 6... e6 {[%clk 0:03:03]}
7. cxd5 {[%clk 0:03:05.2]} 7... exd5 {[%clk 0:03:03.9]} 8. h3 {[%clk 0:03:05.5]}
8... Bh5 {[%clk 0:03:02]} 9. e4 {[%clk 0:03:04.4]} 9... dxe4 {[%clk 0:03:01.2]}
10. dxe4 {[%clk 0:03:04.8]} 10... Nc5 {[%clk 0:03:02.3]} 11. Nc3 {[%clk
0:02:48.7]} 11... Be7 {[%clk 0:02:47.8]} 12. e5 {[%clk 0:02:30.3]} 12... Qxd1
{[%clk 0:02:46.8]} 13. Rxd1 {[%clk 0:02:30.4]} 13... Nfd7 {[%clk 0:02:47.3]} 14.
Bf4 {[%clk 0:02:14.6]} 14... Bxf3 {[%clk 0:02:19.4]} 15. Bxf3 {[%clk 0:02:15.3]}
15... g5 {[%clk 0:02:19.7]} 16. Be3 {[%clk 0:02:16.9]} 16... Nxe5 {[%clk
0:02:20.4]} 17. Be2 {[%clk 0:02:17.8]} 17... Ne6 {[%clk 0:02:08.7]} 18. Ne4
{[%clk 0:01:38.2]} 18... f5 {[%clk 0:01:35.6]} 19. Bh5+ {[%clk 0:01:37.6]} 19...
Kf8 {[%clk 0:01:36.3]} 20. Nd6 {[%clk 0:01:16.2]} 20... f4 {[%clk 0:01:32]} 21.
Bd4 {[%clk 0:00:59.6]} 21... Bxd6 {[%clk 0:01:28.8]} 22. Bc3 {[%clk 0:00:58.6]}
22... Ke7 {[%clk 0:01:08.3]} 23. Rxd6 {[%clk 0:00:51.6]} 23... Kxd6 {[%clk
0:01:07.2]} 24. Rd1+ {[%clk 0:00:53.2]} 24... Ke7 {[%clk 0:01:07.1]} 25. Bxe5
{[%clk 0:00:54.1]} 25... Rhd8 {[%clk 0:01:01.6]} 26. Re1 {[%clk 0:00:55.6]}
26... fxg3 {[%clk 0:00:53.3]} 27. Bxg3 {[%clk 0:00:55.1]} 27... Rd4 {[%clk
0:00:40.3]} 28. Bg4 {[%clk 0:00:52.9]} 28... Rxg4 {[%clk 0:00:41.4]} 29. hxg4
{[%clk 0:00:54]} 29... Rd8 {[%clk 0:00:43]} 30. Kg2 {[%clk 0:00:50.2]} 30... Rd2
{[%clk 0:00:42.8]} 31. Be5 {[%clk 0:00:49.5]} 31... Kf7 {[%clk 0:00:43.5]} 32.
Bc3 {[%clk 0:00:47]} 32... Nf4+ {[%clk 0:00:41.3]} 33. Kf3 {[%clk 0:00:47.8]}
33... Rc2 {[%clk 0:00:37.8]} 34. Rh1 {[%clk 0:00:45.7]} 34... Kg6 {[%clk
0:00:37.5]} 35. Rd1 {[%clk 0:00:46.3]} 35... Nd5 {[%clk 0:00:37.8]} 36. Bd4
{[%clk 0:00:45.4]} 36... h5 {[%clk 0:00:32.9]} 37. Re1 {[%clk 0:00:41.5]} 37...
hxg4+ {[%clk 0:00:29.8]} 38. Kg3 {[%clk 0:00:41.1]} 38... Rd2 {[%clk 0:00:25.7]}
39. Bh8 {[%clk 0:00:37.9]} 39... Rd3+ {[%clk 0:00:14.3]} 40. Kxg4 {[%clk
0:00:35]} 40... Nf6+ {[%clk 0:00:15.9]} 41. Bxf6 {[%clk 0:00:35.3]} 41... Kxf6
{[%clk 0:00:17.3]} 42. Re2 {[%clk 0:00:35.1]} 42... Rd4+ {[%clk 0:00:16.7]} 43.
Kg3 {[%clk 0:00:35.8]} 43... Kf5 {[%clk 0:00:18.2]} 44. b3 {[%clk 0:00:33.7]}
44... Rd3+ {[%clk 0:00:19.2]} 45. Kg2 {[%clk 0:00:34.8]} 45... a5 {[%clk
0:00:19.5]} 46. Re7 {[%clk 0:00:34.9]} 46... b5 {[%clk 0:00:20.7]} 47. Rc7
{[%clk 0:00:34.1]} 47... Rc3 {[%clk 0:00:21.9]} 48. Ra7 {[%clk 0:00:34.9]} 48...
a4 {[%clk 0:00:12.5]} 49. bxa4 {[%clk 0:00:34.1]} 49... Ra3 {[%clk 0:00:13.6]}
50. a5 {[%clk 0:00:30.2]} 50... Rxa2 {[%clk 0:00:12.8]} 51. Rc7 {[%clk
0:00:31.1]} 51... Rxa5 {[%clk 0:00:13]} 52. Rxc6 {[%clk 0:00:32.1]} 52... b4
{[%clk 0:00:06.1]} 53. Rb6 {[%clk 0:00:32.7]} 53... Ra4 {[%clk 0:00:07.4]} 54.
Kg3 {[%clk 0:00:30.7]} 54... Ra3+ {[%clk 0:00:08]} 55. f3 {[%clk 0:00:31.9]}
55... Rb3 {[%clk 0:00:08.8]} 56. Rb5+ {[%clk 0:00:32.8]} 56... Kf6 {[%clk
0:00:09.4]} 57. Kg4 {[%clk 0:00:32.5]} 57... Rb1 {[%clk 0:00:10.6]} 58. Rf5+
{[%clk 0:00:30.4]} 58... Ke6 {[%clk 0:00:11.5]} 59. Rb5 {[%clk 0:00:31.2]} 59...
b3 {[%clk 0:00:07.7]} 60. Kxg5 {[%clk 0:00:31.6]} 60... Kd6 {[%clk 0:00:07.7]}
61. Kf4 {[%clk 0:00:31.7]} 61... Kc6 {[%clk 0:00:08.9]} 62. Rb8 {[%clk
0:00:32.5]} 62... Kc5 {[%clk 0:00:10.4]} 63. Kg3 {[%clk 0:00:33.1]} 63... Kc4
{[%clk 0:00:11.1]} 64. Rc8+ {[%clk 0:00:33.5]} 64... Kd3 {[%clk 0:00:12.3]} 65.
Rd8+ {[%clk 0:00:34.4]} 65... Kc2 {[%clk 0:00:13.7]} 66. Rc8+ {[%clk 0:00:35.3]}
66... Kb2 {[%clk 0:00:15.4]} 67. f4 {[%clk 0:00:36.2]} 67... Rf1 {[%clk
0:00:13.4]} 68. Kg4 {[%clk 0:00:36.2]} 68... Ka2 {[%clk 0:00:14.5]} 69. Ra8+
{[%clk 0:00:36.5]} 69... Kb1 {[%clk 0:00:15.8]} 70. f5 {[%clk 0:00:37.1]} 70...
b2 {[%clk 0:00:17.4]} 71. Kg5 {[%clk 0:00:36]} 71... Rg1+ {[%clk 0:00:17]} 72.
Kh6 {[%clk 0:00:36.1]} 72... Rf1 {[%clk 0:00:17.4]} 73. Kg6 {[%clk 0:00:36.9]}
73... Rf4 {[%clk 0:00:18.1]} 74. Rb8 {[%clk 0:00:36.2]} 74... Kc2 {[%clk
0:00:18.9]} 75. f6 {[%clk 0:00:37.1]} 75... b1=Q {[%clk 0:00:16.3]} 76. Rxb1
{[%clk 0:00:37.7]} 76... Kxb1 {[%clk 0:00:17.6]} 77. f7 {[%clk 0:00:39.3]} 77...
Rxf7 {[%clk 0:00:19.1]} 78. Kxf7 {[%clk 0:00:40.6]} 1/2-1/2

[Event "*** Titled Tuesday 3|2 Blitz (Early)"]
[Site "Chess.com"]
[Date "2016.11.01"]
[Round "8"]
[White "RodinMihail"]
[Black "IIIlllII1llIl"]
[Result "0-1"]
[WhiteElo "2420"]
[BlackElo "2523"]
[TimeControl "180+2"]
[EndTime "12:41:57 PDT"]
[Termination "IIIlllII1llIl won by resignation"]

1. e4 {[%clk 0:00:06.1]} 1... f5 {[%clk 0:02:57.6]} 2. exf5 {[%clk 0:00:06.7]}
2... d5 {[%clk 0:02:56.8]} 3. Qh5+ {[%clk 0:00:07]} 3... Kd7 {[%clk 0:02:55]} 4.
Nf3 {[%clk 0:00:08]} 4... c6 {[%clk 0:02:41]} 5. Ne5+ {[%clk 0:00:07.6]} 5...
Kc7 {[%clk 0:02:42]} 6. Nf7 {[%clk 0:00:08.8]} 6... Qe8 {[%clk 0:02:42.7]} 7. g4
{[%clk 0:00:09]} 7... Nf6 {[%clk 0:02:37]} 8. Qh3 {[%clk 0:00:09.1]} 8... Qxf7
{[%clk 0:02:37.3]} 9. Qg3+ {[%clk 0:00:11]} 9... Kd8 {[%clk 0:02:36.5]} 10. Nc3
{[%clk 0:00:12.8]} 10... e6 {[%clk 0:02:35.3]} 11. g5 {[%clk 0:00:09.8]} 11...
Nh5 {[%clk 0:02:30.3]} 12. Qh4 {[%clk 0:00:10.1]} 12... exf5 {[%clk 0:02:30.4]}
13. d4 {[%clk 0:00:10.1]} 13... Be7 {[%clk 0:02:26]} 14. Be2 {[%clk 0:00:10.2]}
14... g6 {[%clk 0:02:26.7]} 15. Be3 {[%clk 0:00:10.2]} 15... f4 {[%clk
0:02:24.6]} 16. Bd2 {[%clk 0:00:11.5]} 16... h6 {[%clk 0:02:25.8]} 17. Bxh5
{[%clk 0:00:10]} 17... Bxg5 {[%clk 0:02:25.5]} 0-1

[Event "*** Titled Tuesday 3|2 Blitz (Early)"]
[Site "Chess.com"]
[Date "2016.11.01"]
[Round "8"]
[White "maciek_92"]
[Black "amaidel"]
[Result "1-0"]
[WhiteElo "2564"]
[BlackElo "2493"]
[TimeControl "180+2"]
[EndTime "12:42:51 PDT"]
[Termination "maciek_92 won by resignation"]

1. c4 {[%clk 0:03:01.9]} 1... f5 {[%clk 0:02:56.9]} 2. Nc3 {[%clk 0:03:00.9]}
2... Nf6 {[%clk 0:02:57.9]} 3. g3 {[%clk 0:03:02.5]} 3... g6 {[%clk 0:02:59]} 4.
Bg2 {[%clk 0:03:04.1]} 4... Bg7 {[%clk 0:03:00]} 5. Nf3 {[%clk 0:03:01.4]} 5...
O-O {[%clk 0:03:00.7]} 6. O-O {[%clk 0:03:01.2]} 6... d6 {[%clk 0:03:01.9]} 7.
d4 {[%clk 0:03:02.6]} 7... c6 {[%clk 0:03:02.4]} 8. Qb3 {[%clk 0:03:01.8]} 8...
h6 {[%clk 0:03:01.2]} 9. c5+ {[%clk 0:02:46]} 9... Kh7 {[%clk 0:03:00.2]} 10.
cxd6 {[%clk 0:02:46.3]} 10... exd6 {[%clk 0:03:00.8]} 11. d5 {[%clk 0:02:35.7]}
11... c5 {[%clk 0:02:59.5]} 12. a4 {[%clk 0:02:36.1]} 12... Na6 {[%clk
0:02:59.5]} 13. Nd2 {[%clk 0:02:32]} 13... Nb4 {[%clk 0:02:56.7]} 14. Nc4 {[%clk
0:02:32.9]} 14... g5 {[%clk 0:02:44.3]} 15. Nb5 {[%clk 0:02:29.3]} 15... Nfxd5
{[%clk 0:02:30.1]} 16. Rd1 {[%clk 0:02:24.1]} 16... Be6 {[%clk 0:02:28.4]} 17.
Nbxd6 {[%clk 0:02:17.7]} 17... Nb6 {[%clk 0:02:21.8]} 18. Be3 {[%clk 0:02:15.4]}
18... Nxc4 {[%clk 0:02:18.1]} 19. Nxc4 {[%clk 0:02:12.7]} 19... Qc7 {[%clk
0:02:18.5]} 20. Rac1 {[%clk 0:02:11.7]} 20... Rad8 {[%clk 0:02:18]} 21. a5
{[%clk 0:02:02]} 21... b5 {[%clk 0:02:14.3]} 22. axb6 {[%clk 0:02:02.1]} 22...
axb6 {[%clk 0:02:15.4]} 23. Qa4 {[%clk 0:01:59.6]} 23... Rxd1+ {[%clk
0:02:13.2]} 24. Qxd1 {[%clk 0:01:59.5]} 24... f4 {[%clk 0:01:55.4]} 25. Bd2
{[%clk 0:01:49.3]} 25... fxg3 {[%clk 0:01:51.5]} 26. hxg3 {[%clk 0:01:51.2]}
26... Nc6 {[%clk 0:01:46.8]} 27. Bc3 {[%clk 0:01:44.8]} 27... Nd4 {[%clk
0:01:46.3]} 28. Bxd4 {[%clk 0:01:34.3]} 28... Bxd4 {[%clk 0:01:40.7]} 29. e3
{[%clk 0:01:35]} 29... Bg7 {[%clk 0:01:38]} 30. Bd5 {[%clk 0:01:31.9]} 30... Rd8
{[%clk 0:01:20.6]} 31. Qc2+ {[%clk 0:01:31.1]} 1-0